[Event "15th Vandoeuvre Open 2019"]
[Site "Vandoeuvre-les-Nancy"]
[Date "2019.01.04"]
[Round "6"]
[White "Tilicheev, Viacheslav"]
[Black "Rakotomaharo, Fy Antenaina"]
[Result "1-0"]
[ECO "A36"]
[WhiteElo "2507"]
[BlackElo "2425"]
[Annotator "ChessBase"]
[PlyCount "83"]
[EventDate "2019.01.02"]
[EventType "swiss"]
[EventCountry "FRA"]
[SourceTitle "playchess.com"]
[Source "ChessBase"]
[SourceQuality "1"]
[TimeControl "5400+30"]

1. c4 {[%emt 0:00:00]} g6 {[%emt 0:00:35]} 2. Nc3 {[%emt 0:00:00]} c5 {[%emt 0:00:05]} 3. g3 {[%emt 0:01:28]} Nc6 {[%emt 0:00:11]} 4. Bg2 {[%emt 0:00:06]} Bg7 {[%emt 0:00:03]} 5. e3 {[%emt 0:03:24]} d6 {[%emt 0:02:42]} 6. Nge2 {[%emt 0:00:50]} e5 {[%emt 0:00:28]} 7. a3 {[%emt 0:00:45]} Nge7 {[%emt 0:04:48]} 8. Rb1 {[%emt 0:03:34]} a5 {[%emt 0:03:38]} 9. d3 {[%emt 0:07:37]} O-O {[%emt 0:00:32]} 10. O-O {[%emt 0:01:05]} Rb8 {[%emt 0:01:00]} 11. b3 {[%emt 0:07:54]} Be6 {[%emt 0:03:03]} 12. Nd5 {[%emt 0:01:59]} b5 {[%emt 0:09:02]} 13. Bb2 {[%emt 0:01:41]} Qd7 {[%emt 0:01:11]} 14. Qd2 {[%emt 0:01:47]} Bg4 {[%emt 0:27:59]} 15. Rfe1 {[%emt 0:11:47]} Nxd5 {[%emt 0:05:00]} 16. cxd5 {[%emt 0:00:47]} Ne7 {[%emt 0:00:05]} 17. d4 {[%emt 0:04:31]} exd4 {[%emt 0:10:17]} 18. exd4 {[%emt 0:01:00]} c4 {[%emt 0:00:07]} 19. Bc3 {[%emt 0:14:21]} Bxe2 {[%emt 0:09:25]} 20. Rxe2 {[%emt 0:01:51]} Qf5 {[%emt 0:00:33]} 21. Be4 {[%emt 0:14:11]} Qh5 {[%emt 0:00:11]} 22. Kh1 {[%emt 0:00:40]} Bh6 {[%emt 0:02:18]} 23. Qe1 {[%emt 0:01:53]} b4 {[%emt 0:04:03]} 24. axb4 {[%emt 0:00:16]} axb4 {[%emt 0:00:03]} 25. Bxb4 {[%emt 0:00:33]} Rxb4 {[%emt 0:01:01]} 26. g4 {[%emt 0:00:05]} Qxg4 {[%emt 0:00:03]} 27. f3 {[%emt 0:00:11]} Qf4 {[%emt 0:00:20]} 28. Qxb4 {[%emt 0:00:09]} f5 {[%emt 0:00:04]} 29. Bc2 {[%emt 0:01:14]} Qxf3+ {[%emt 0:03:14]} 30. Rg2 {[%emt 0:00:06]} Nxd5 {[%emt 0:00:19]} 31. Qb7 {[%emt 0:02:55]} Rf7 {[%emt 0:01:58]} 32. Qa8+ {[%emt 0:00:12]} Rf8 {[%emt 0:01:12]} 33. Qc6 {[%emt 0:00:23]} Rb8 {[%emt 0:01:20]} 34. Re1 {[%emt 0:17:45]} Rb6 {[%emt 0:07:10]} 35. Qa8+ {[%emt 0:00:00]} Kg7 {[%emt 0:00:05]} 36. Qa7+ {[%emt 0:01:00]} Kg8 {[%emt 0:02:55]} 37. Bd1 {[%emt 0:00:00]} Qc3 {[%emt 0:00:17]} 38. Re8+ {[%emt 0:00:00]} Bf8 {[%emt 0:00:03]} 39. Qa8 {[%emt 0:00:00]} Nf6 {[%emt 0:01:30]} 40. Rxf8+ {[%emt 0:00:00]} Kg7 {[%emt 0:01:10]} 41. Rxf6 {[%emt 0:00:00]} Kxf6 {[%emt 0:00:00]} 42. Qh8+ {[%emt 0:00:00] Kg7 [%clk 0:00:00] Qa8 Rb8 [%clk 0:00:00] Qd5 [%clk 0:00:00] Kf6 Qxd6+ Kg7} 1-0

[Event "15th Vandoeuvre Open 2019"]
[Site "Vandoeuvre-les-Nancy"]
[Date "2019.01.04"]
[Round "6"]
[White "Travadon, Loic"]
[Black "Bauer, Christian"]
[Result "0-1"]
[ECO "A46"]
[WhiteElo "2379"]
[BlackElo "2637"]
[Annotator "ChessBase"]
[PlyCount "60"]
[EventDate "2019.01.02"]
[EventType "swiss"]
[EventCountry "FRA"]
[SourceTitle "playchess.com"]
[Source "ChessBase"]
[SourceQuality "1"]
[TimeControl "5400+30"]

1. d4 {[%emt 0:00:00]} Nf6 {[%emt 0:00:00]} 2. Nf3 {[%emt 0:00:00]} d6 {[%emt 0:00:11]} 3. g3 {[%emt 0:00:00]} Nbd7 {[%emt 0:01:06]} 4. Bg2 {[%emt 0:00:05]} e5 {[%emt 0:00:06]} 5. O-O {[%emt 0:00:16]} e4 {[%emt 0:00:41]} 6. Ng5 {[%emt 0:01:05]} d5 {[%emt 0:00:06]} 7. f3 {[%emt 0:00:11]} h6 {[%emt 0:01:05]} 8. Nh3 {[%emt 0:00:05]} exf3 {[%emt 0:03:56]} 9. exf3 {[%emt 0:00:05]} Be7 {[%emt 0:00:08]} 10. Re1 {[%emt 0:01:36]} O-O {[%emt 0:01:01]} 11. Bf4 {[%emt 0:01:03]} Nb6 {[%emt 0:02:02]} 12. Nf2 {[%emt 0:00:26]} Nh5 {[%emt 0:03:40]} 13. Bc1 {[%emt 0:00:39]} Bd6 {[%emt 0:05:58]} 14. Nd3 {[%emt 0:07:04]} Nxg3 {[%emt 0:01:52]} 15. hxg3 {[%emt 0:00:11]} Bxg3 {[%emt 0:00:03]} 16. Bf4 {[%emt 0:00:25]} Bxf4 {[%emt 0:01:31]} 17. Nxf4 {[%emt 0:00:05]} Qh4 {[%emt 0:00:03]} 18. Qc1 {[%emt 0:02:06]} Bf5 {[%emt 0:01:02]} 19. Nc3 {[%emt 0:02:11]} Rae8 {[%emt 0:07:06]} 20. Ncxd5 {[%emt 0:01:29]} Nxd5 {[%emt 0:01:59]} 21. Nxd5 {[%emt 0:00:05]} Rxe1+ {[%emt 0:01:18]} 22. Qxe1 {[%emt 0:00:01]} Qxd4+ {[%emt 0:00:07]} 23. Ne3 {[%emt 0:00:04]} Re8 {[%emt 0:00:07]} 24. Kf2 {[%emt 1:22:48]} Qxb2 {[%emt 0:09:42]} 25. Rb1 {[%emt 0:00:00]} Qf6 {[%emt 0:13:41]} 26. Qb4 {[%emt 0:00:00]} Be6 {[%emt 0:05:12]} 27. Re1 {[%emt 0:00:00]} b6 {[%emt 0:00:55]} 28. Nd5 {[%emt 0:00:00]} Qd8 {[%emt 0:00:43]} 29. Qe4 {[%emt 0:00:00]} f5 {[%emt 0:07:59]} 30. Qe5 {[%emt 0:00:00]} Bf7 {[%emt 0:01:00]} 0-1

[Event "15th Vandoeuvre Open 2019"]
[Site "Vandoeuvre-les-Nancy"]
[Date "2019.01.04"]
[Round "6"]
[White "Daeschler, Florian"]
[Black "Ma, Qun"]
[Result "0-1"]
[ECO "E08"]
[WhiteElo "2235"]
[BlackElo "2625"]
[Annotator "ChessBase"]
[PlyCount "106"]
[EventDate "2019.01.02"]
[EventType "swiss"]
[EventCountry "FRA"]
[SourceTitle "playchess.com"]
[Source "ChessBase"]
[SourceQuality "1"]
[TimeControl "5400+30"]

1. d4 {[%emt 0:00:00]} d5 {[%emt 0:01:01]} 2. c4 {[%emt 0:00:00]} e6 {[%emt 0:00:06]} 3. Nf3 {[%emt 0:00:00]} Nf6 {[%emt 0:00:57]} 4. g3 {[%emt 0:00:00]} Bb4+ {[%emt 0:01:54]} 5. Bd2 {[%emt 0:00:04]} Be7 {[%emt 0:00:07]} 6. Bg2 {[%emt 0:00:05]} c6 {[%emt 0:00:25]} 7. Qc2 {[%emt 0:00:37]} O-O {[%emt 0:00:15]} 8. O-O {[%emt 0:00:04]} Nbd7 {[%emt 0:00:30]} 9. Bf4 {[%emt 0:00:06]} Ne4 {[%emt 0:02:03]} 10. Nfd2 {[%emt 0:04:21]} g5 {[%emt 0:02:32]} 11. Be3 {[%emt 0:00:03]} Nd6 {[%emt 0:00:50]} 12. Nc3 {[%emt 0:00:20]} Nf5 {[%emt 0:12:12]} 13. cxd5 {[%emt 0:01:13]} Nxe3 {[%emt 0:00:07]} 14. fxe3 {[%emt 0:00:04]} exd5 {[%emt 0:01:20]} 15. Rad1 {[%emt 0:00:10]} Nb6 {[%emt 0:02:05]} 16. e4 {[%emt 0:05:24]} Be6 {[%emt 0:00:02]} 17. exd5 {[%emt 0:12:57]} cxd5 {[%emt 0:00:14]} 18. e4 {[%emt 0:00:29]} Rc8 {[%emt 0:02:33]} 19. e5 {[%emt 0:03:07]} f6 {[%emt 0:01:47]} 20. Rde1 {[%emt 0:05:01]} f5 {[%emt 0:02:12]} 21. Qb3 {[%emt 0:06:37]} Qd7 {[%emt 0:02:45]} 22. Rf2 {[%emt 0:09:02]} Nc4 {[%emt 0:06:24]} 23. Nf1 {[%emt 0:19:56]} f4 {[%emt 0:00:43]} 24. Qb5 {[%emt 0:01:42]} Qxb5 {[%emt 0:03:18]} 25. Nxb5 {[%emt 0:00:03]} fxg3 {[%emt 0:00:37]} 26. Rxf8+ {[%emt 0:02:13]} Bxf8 {[%emt 0:00:27]} 27. hxg3 {[%emt 0:01:41]} Bb4 {[%emt 0:12:27]} 28. Rc1 {[%emt 0:07:00]} a6 {[%emt 0:01:00]} 29. Na3 {[%emt 0:00:02]} Nxa3 {[%emt 0:00:43]} 30. Rxc8+ {[%emt 0:00:13]} Bxc8 {[%emt 0:00:01]} 31. bxa3 {[%emt 0:01:09]} Bc3 {[%emt 0:00:03]} 32. Bxd5+ {[%emt 0:00:05]} Kf8 {[%emt 0:01:00]} 33. Kg2 {[%emt 0:01:43]} Bxd4 {[%emt 0:00:02]} 34. e6 {[%emt 0:09:38]} Ke7 {[%emt 0:00:02]} 35. Kf3 {[%emt 0:00:48]} Bxe6 {[%emt 0:03:23]} 36. Bxb7 {[%emt 0:00:08]} a5 {[%emt 0:00:08]} 37. Ke4 {[%emt 0:03:27]} Bc5 {[%emt 0:05:29]} 38. a4 {[%emt 0:02:00]} h5 {[%emt 0:03:45]} 39. Nd2 {[%emt 0:02:41]} Bd6 {[%emt 0:01:39]} 40. Nb3 {[%emt 0:03:55]} Bc7 {[%emt 0:01:08]} 41. Nd4 {[%emt 0:00:27]} Bg4 {[%emt 0:04:10]} 42. Nf5+ {[%emt 0:00:46]} Kf6 {[%emt 0:00:01]} 43. Ne3 {[%emt 0:00:07]} Be6 {[%emt 0:00:13]} 44. Nd5+ {[%emt 0:01:25]} Bxd5+ {[%emt 0:00:03]} 45. Bxd5 {[%emt 0:00:03]} g4 {[%emt 0:00:22]} 46. Ke3 {[%emt 0:00:31]} Bxg3 {[%emt 0:00:03]} 47. Ke2 {[%emt 0:00:08]} Kg5 {[%emt 0:00:04]} 48. Kf1 {[%emt 0:00:03]} h4 {[%emt 0:00:07]} 49. Kg2 {[%emt 0:00:13]} Bd6 {[%emt 0:00:03]} 50. Bc6 {[%emt 0:00:27]} h3+ {[%emt 0:00:02]} 51. Kg1 {[%emt 0:00:07]} g3 {[%emt 0:00:06]} 52. a3 {[%emt 0:00:31]} Bxa3 {[%emt 0:00:07]} 53. Bd7 {[%emt 0:00:13]} Bc5+ {[%emt 0:32:53]} 0-1

[Event "15th Vandoeuvre Open 2019"]
[Site "Vandoeuvre-les-Nancy"]
[Date "2019.01.04"]
[Round "6"]
[White "Simon, Edouard"]
[Black "Fretel, Liza"]
[Result "0-1"]
[ECO "B23"]
[WhiteElo "1977"]
[BlackElo "1855"]
[Annotator "NA"]
[PlyCount "88"]
[EventDate "2019.01.02"]
[EventType "swiss"]
[EventCountry "FRA"]
[SourceTitle "playchess.com"]
[Source "ChessBase"]
[SourceQuality "1"]
[TimeControl "5400+30"]

1. e4 {[%emt 0:00:00]} c5 {[%emt 0:00:00]} 2. Nc3 Nc6 {[%emt 0:00:01]} 3. f4 e6 {[%emt 1:31:29]} 4. Bb5 {[%emt 1:32:00]} Nd4 {[%emt 0:00:30]} 5. Bd3 {[%emt 0:00:30]} Ne7 {[%emt 0:00:30]} 6. Nf3 {[%emt 0:00:30]} Nec6 {[%emt 0:00:30]} 7. Nxd4 {[%emt 0:00:30]} Nxd4 {[%emt 0:00:00]} 8. Ne2 {[%emt 0:00:00]} Nc6 9. c3 {[%emt 0:01:00]} Qh4+ {[%emt 0:01:30]} 10. g3 {[%emt 0:00:30]} Qh3 {[%emt 0:00:30]} 11. Kf2 {[%emt 0:00:30]} Qh5 {[%emt 0:00:30]} 12. Kg2 {[%emt 0:00:00]} b6 {[%emt 0:00:00]} 13. Re1 {[%emt 0:01:00]} Bb7 {[%emt 0:00:00]} 14. Ng1 {[%emt 0:00:00]} Qxd1 15. Rxd1 f5 {[%emt 0:02:00]} 16. Kf2 {[%emt 0:01:30]} c4 {[%emt 0:00:30]} 17. Bxc4 {[%emt 0:00:00]} fxe4 {[%emt 0:00:00]} 18. d3 Na5 {[%emt 0:01:00]} 19. Bb5 {[%emt 0:01:30]} a6 {[%emt 0:00:30]} 20. Ba4 {[%emt 0:00:30]} exd3 {[%emt 0:00:30]} 21. Rxd3 {[%emt 0:00:00]} b5 {[%emt 0:00:30]} 22. Bd1 {[%emt 0:01:00]} Bc5+ {[%emt 0:00:30]} 23. Be3 {[%emt 0:00:30]} Be4 {[%emt 0:00:30]} 24. Bf3 {[%emt 0:00:30]} Bxd3 {[%emt 0:00:30]} 25. Bxa8 {[%emt 0:00:30]} Bxe3+ {[%emt 0:00:30]} 26. Kxe3 {[%emt 0:00:30]} Bg6 {[%emt 0:00:30]} 27. b4 {[%emt 0:00:30]} Nc4+ {[%emt 0:00:00]} 28. Kd4 {[%emt 0:00:30]} O-O {[%emt 0:01:00]} 29. Bf3 {[%emt 0:00:30]} d6 {[%emt 0:00:30]} 30. Bb7 {[%emt 0:00:30]} Rf5 {[%emt 0:00:30]} 31. Be4 {[%emt 0:00:30]} e5+ {[%emt 0:00:00]} 32. Kd3 Rh5 {[%emt 0:01:00]} 33. Bxg6 {[%emt 0:01:00]} hxg6 {[%emt 0:00:00]} 34. Nf3 {[%emt 0:00:30]} exf4 {[%emt 0:00:00]} 35. gxf4 Rf5 {[%emt 0:01:30]} 36. Nh4 {[%emt 0:01:00]} Rxf4 {[%emt 0:00:00]} 37. Nxg6 {[%emt 0:00:30]} Rf2 {[%emt 0:01:00]} 38. h4 {[%emt 0:00:30]} Kf7 {[%emt 0:00:30]} 39. h5 {[%emt 0:00:30]} Kf6 {[%emt 0:00:30]} 40. a4 {[%emt 0:00:30]} Kf5 {[%emt 0:00:30]} 41. axb5 {[%emt 0:00:30]} axb5 {[%emt 0:00:30]} 42. Ne7+ {[%emt 0:00:30]} Kg4 {[%emt 0:00:30]} 43. Ng6 {[%emt 0:00:00]} Rd2+ {[%emt 0:00:00]} 44. Ke4 {[%emt 0:00:00]} d5# {[%emt 0:01:00]} 0-1

[Event "15th Vandoeuvre Open 2019"]
[Site "Vandoeuvre-les-Nancy"]
[Date "2019.01.04"]
[Round "6"]
[White "Battistella, Valentin"]
[Black "Neyroumande, Adrien"]
[Result "1/2-1/2"]
[ECO "B56"]
[WhiteElo "1882"]
[BlackElo "1816"]
[Annotator "NA"]
[PlyCount "118"]
[EventDate "2019.01.02"]
[EventType "swiss"]
[EventCountry "FRA"]
[SourceTitle "playchess.com"]
[Source "ChessBase"]
[SourceQuality "1"]
[TimeControl "5400+30"]

1. e4 {[%emt 1:30:30]} c5 {[%emt 0:00:00]} 2. Nc3 {[%emt 0:00:00]} Nc6 {[%emt 0:00:02]} 3. Bb5 {[%emt 0:01:00]} d6 {[%emt 0:01:23]} 4. Nf3 {[%emt 0:00:30]} Bd7 {[%emt 0:00:59]} 5. O-O {[%emt 0:00:30]} g6 {[%emt 0:00:31]} 6. d4 {[%emt 0:00:30]} cxd4 {[%emt 0:01:32]} 7. Nxd4 {[%emt 0:00:00]} Bg7 {[%emt 0:01:22]} 8. Be3 {[%emt 0:00:00]} Nf6 {[%emt 0:01:28]} 9. Kh1 {[%emt 0:00:00]} O-O {[%emt 1:27:13]} 10. Bc4 {[%emt 0:02:00]} Nxd4 {[%emt 0:00:00]} 11. Bxd4 {[%emt 0:00:00]} a6 {[%emt 0:00:00]} 12. f4 {[%emt 0:00:00]} b5 {[%emt 0:00:00]} 13. Bd3 {[%emt 0:00:00]} Bc6 {[%emt 0:02:00]} 14. a3 {[%emt 0:00:00]} d5 {[%emt 0:00:00]} 15. e5 {[%emt 0:00:00]} Nd7 {[%emt 0:00:00]} 16. Qg4 {[%emt 0:00:00]} e6 {[%emt 0:00:00]} 17. Rae1 {[%emt 0:00:00]} Qe7 {[%emt 0:00:00]} 18. Bf2 {[%emt 0:04:00]} Nc5 {[%emt 0:00:00]} 19. Bh4 {[%emt 0:00:00]} Qb7 {[%emt 0:00:00]} 20. Bf6 {[%emt 0:00:00]} Nxd3 {[%emt 0:00:00]} 21. cxd3 {[%emt 0:00:00]} b4 {[%emt 0:00:00]} 22. Ne2 {[%emt 0:00:00]} bxa3 {[%emt 0:00:00]} 23. Ng3 {[%emt 0:02:30]} d4 {[%emt 0:00:00]} 24. Nh5 {[%emt 0:00:00]} Bxg2+ {[%emt 0:00:00]} 25. Qxg2 {[%emt 0:00:00]} Qxg2+ {[%emt 0:00:00]} 26. Kxg2 {[%emt 0:00:00]} gxh5 {[%emt 0:00:00]} 27. Be7 {[%emt 0:00:10]} Rfb8 {[%emt 0:00:00]} 28. bxa3 {[%emt 0:00:53]} Rb3 {[%emt 0:00:00]} 29. Rd1 {[%emt 0:00:33]} Bf8 {[%emt 0:00:35]} 30. Bxf8 {[%emt 0:00:46]} Kxf8 {[%emt 0:00:06]} 31. Kf3 {[%emt 0:00:05]} Rxa3 {[%emt 0:00:36]} 32. Ke4 {[%emt 0:00:02]} Rd8 {[%emt 0:01:12]} 33. Ra1 {[%emt 0:00:07]} Rxa1 {[%emt 0:02:47]} 34. Rxa1 {[%emt 0:00:01]} Rb8 {[%emt 0:00:02]} 35. Ra2 {[%emt 0:01:31]} Rb4 {[%emt 0:00:57]} 36. h3 {[%emt 0:00:23]} Rb1 {[%emt 0:01:16]} 37. Kf3 {[%emt 0:01:48]} Re1 {[%emt 0:00:42]} 38. Ra3 {[%emt 0:00:08]} Re3+ {[%emt 0:00:54]} 39. Kg2 {[%emt 0:00:06]} Kg7 {[%emt 0:00:26]} 40. h4 {[%emt 0:00:09]} Kg6 {[%emt 0:00:17]} 41. Rxa6 {[%emt 0:00:01]} Rxd3 {[%emt 0:00:18]} 42. Ra7 {[%emt 0:00:06]} Rc3 {[%emt 0:01:32]} 43. Rd7 {[%emt 0:00:13]} d3 {[%emt 0:00:29]} 44. Kf3 {[%emt 0:00:28]} d2+ {[%emt 0:01:17]} 45. Ke4 {[%emt 0:00:01]} Rc2 {[%emt 0:00:56]} 46. Rd8 {[%emt 0:00:14]} Kg7 {[%emt 0:00:22]} 47. Ke3 {[%emt 0:01:31]} Ra2 {[%emt 0:00:29]} 48. Ke4 {[%emt 0:00:11]} Rb2 {[%emt 0:01:10]} 49. Ke3 {[%emt 0:00:07]} Rb1 {[%emt 0:00:11]} 50. Rxd2 {[%emt 0:00:31]} Rh1 {[%emt 0:00:05]} 51. Rg2+ {[%emt 0:00:10]} Kf8 {[%emt 0:00:05]} 52. f5 {[%emt 0:00:57]} exf5 {[%emt 0:01:33]} 53. Kf4 {[%emt 0:00:07]} Rxh4+ {[%emt 0:00:11]} 54. Kxf5 {[%emt 0:00:02]} Ke7 {[%emt 0:00:50]} 55. Ra2 {[%emt 0:00:01]} Rd4 {[%emt 0:00:29]} 56. Ra7+ {[%emt 0:00:25]} Rd7 {[%emt 0:00:24]} 57. Ra4 {[%emt 0:00:20]} Rd1 {[%emt 0:00:32]} 58. Ra7+ {[%emt 0:03:39]} Rd7 {[%emt 0:00:24]} 59. Ra4 {[%emt 0:00:12]} Rd1 {[%emt 0:00:21]} 1/2-1/2

[Event "15th Vandoeuvre Open 2019"]
[Site "Vandoeuvre-les-Nancy"]
[Date "2019.01.04"]
[Round "6"]
[White "Bellahcene, Anissa"]
[Black "Rauta, Nicolas"]
[Result "1/2-1/2"]
[ECO "B18"]
[WhiteElo "1819"]
[BlackElo "1904"]
[Annotator "NA"]
[PlyCount "95"]
[EventDate "2019.01.02"]
[EventType "swiss"]
[EventCountry "FRA"]
[SourceTitle "playchess.com"]
[Source "ChessBase"]
[SourceQuality "1"]
[TimeControl "5400+30"]

1. e4 {[%emt 0:00:24]} c6 {[%emt 0:00:00]} 2. d4 {[%emt 0:00:45]} d5 {[%emt 0:00:00]} 3. Nc3 {[%emt 0:00:12]} dxe4 {[%emt 0:00:00]} 4. Nxe4 {[%emt 0:00:11]} Bf5 {[%emt 0:00:00]} 5. Nc5 {[%emt 0:01:14]} b6 {[%emt 0:14:20]} 6. Nb3 {[%emt 0:01:16]} Nf6 {[%emt 0:00:22]} 7. Nf3 {[%emt 0:00:32]} Nbd7 {[%emt 0:02:44]} 8. g3 {[%emt 0:05:08]} e6 {[%emt 0:00:21]} 9. Bg2 {[%emt 0:00:47]} Bd6 {[%emt 0:01:39]} 10. O-O {[%emt 0:02:16]} O-O {[%emt 0:01:42]} 11. Nbd2 {[%emt 0:06:50]} Rc8 {[%emt 0:01:41]} 12. Nc4 {[%emt 1:16:25]} Bb8 {[%emt 0:04:29]} 13. Nfe5 {[%emt 0:00:00]} Nxe5 {[%emt 0:18:59]} 14. dxe5 {[%emt 0:00:00]} Qxd1 {[%emt 0:01:40]} 15. Rxd1 {[%emt 0:00:00]} Nd5 {[%emt 0:00:10]} 16. c3 {[%emt 0:00:00]} h6 {[%emt 0:15:58]} 17. Be3 {[%emt 0:00:00]} Bg6 {[%emt 0:08:09]} 18. Nd6 {[%emt 0:00:00]} Rcd8 {[%emt 0:02:04]} 19. Bf4 {[%emt 0:00:00]} Bh5 {[%emt 0:07:23]} 20. Rd2 {[%emt 0:00:00]} g5 {[%emt 0:00:34]} 21. Be3 {[%emt 0:00:00]} Nxe3 {[%emt 0:01:37]} 22. fxe3 {[%emt 0:00:00]} c5 {[%emt 0:01:27]} 23. Rf1 {[%emt 0:00:00]} Bxd6 {[%emt 0:08:55]} 24. exd6 {[%emt 0:00:00]} f6 {[%emt 0:00:24]} 25. Bc6 {[%emt 0:00:00]} Kg7 {[%emt 0:00:23]} 26. h3 {[%emt 0:00:00]} f5 {[%emt 0:03:23]} 27. e4 {[%emt 0:00:00]} fxe4 {[%emt 0:02:01]} 28. Rxf8 {[%emt 0:00:00]} Kxf8 {[%emt 0:00:38]} 29. Bxe4 {[%emt 0:00:00]} Be8 {[%emt 0:00:20]} 30. Kf2 {[%emt 0:00:00]} Kg7 {[%emt 0:00:24]} 31. Ke3 {[%emt 0:00:00]} Bd7 {[%emt 0:03:43]} 32. h4 {[%emt 0:10:00]} Kf6 {[%emt 0:00:00]} 33. Rf2+ {[%emt 0:00:00]} Ke5 {[%emt 0:00:00]} 34. hxg5 {[%emt 0:00:00]} hxg5 {[%emt 0:00:00]} 35. Rf7 {[%emt 0:00:00]} Kxd6 {[%emt 0:00:05]} 36. Rg7 {[%emt 0:00:00]} Rf8 {[%emt 0:00:25]} 37. Rxg5 {[%emt 0:00:00]} Ke7 {[%emt 0:00:45]} 38. Rg7+ {[%emt 0:00:00]} Rf7 {[%emt 0:00:13]} 39. Rxf7+ {[%emt 0:00:00]} Kxf7 {[%emt 0:00:01]} 40. Kf4 {[%emt 0:00:00]} Kf6 {[%emt 0:00:13]} 41. Bb7 {[%emt 0:00:00]} e5+ {[%emt 0:01:05]} 42. Kf3 {[%emt 0:00:00]} Be6 {[%emt 0:00:42]} 43. a3 {[%emt 0:00:00]} Bd7 {[%emt 0:00:47]} 44. Be4 {[%emt 0:00:00]} Be6 {[%emt 0:00:29]} 45. Bb7 {[%emt 0:00:00]} Bd7 {[%emt 0:00:49]} 46. Be4 {[%emt 0:00:00]} Be6 {[%emt 0:00:39]} 47. Bb7 {[%emt 0:00:00]} Bd7 {[%emt 0:00:10]} 48. Be4 {[%emt 0:00:00]} 1/2-1/2

[Event "15th Vandoeuvre Open 2019"]
[Site "Vandoeuvre-les-Nancy"]
[Date "2019.01.04"]
[Round "6"]
[White "Winkin, Pol"]
[Black "Leriche, Ines"]
[Result "1/2-1/2"]
[ECO "B38"]
[WhiteElo "1694"]
[BlackElo "1917"]
[Annotator "NA"]
[PlyCount "43"]
[EventDate "2019.01.02"]
[EventType "swiss"]
[EventCountry "FRA"]
[SourceTitle "playchess.com"]
[Source "ChessBase"]
[SourceQuality "1"]
[TimeControl "5400+30"]

1. e4 {[%emt 0:00:00]} c5 {[%emt 0:00:00]} 2. Nf3 {[%emt 0:00:00]} g6 {[%emt 0:00:01]} 3. d4 {[%emt 0:00:00]} cxd4 {[%emt 0:00:07]} 4. Nxd4 {[%emt 0:00:00]} Nc6 {[%emt 0:00:17]} 5. Be3 {[%emt 0:00:37]} Bg7 {[%emt 0:00:24]} 6. c4 {[%emt 0:00:17]} Nf6 {[%emt 0:00:44]} 7. f3 {[%emt 0:00:13]} O-O {[%emt 0:22:32]} 8. Nc3 {[%emt 0:00:35]} d6 {[%emt 0:07:12]} 9. Be2 {[%emt 0:00:23]} Bd7 {[%emt 0:00:21]} 10. O-O {[%emt 0:00:26]} Nxd4 {[%emt 0:00:25]} 11. Bxd4 {[%emt 0:00:30]} Bc6 {[%emt 0:00:16]} 12. Qd2 {[%emt 0:08:09]} a5 {[%emt 0:00:15]} 13. Nd5 {[%emt 0:01:42]} Nd7 {[%emt 0:03:34]} 14. a3 {[%emt 0:04:15]} Bxd4+ {[%emt 0:03:34]} 15. Qxd4 {[%emt 0:00:59]} Nc5 {[%emt 0:00:34]} 16. Qc3 {[%emt 0:03:55]} a4 {[%emt 0:01:14]} 17. Kh1 {[%emt 0:09:49]} Rc8 {[%emt 0:27:02]} 18. Qb4 {[%emt 0:06:34]} Na6 {[%emt 0:14:11]} 19. Qd2 {[%emt 0:08:11]} Nc5 {[%emt 0:01:15]} 20. Qb4 {[%emt 0:03:23]} Na6 {[%emt 0:04:28]} 21. Qd2 {[%emt 0:03:22]} Nc5 {[%emt 0:01:28]} 22. Qb4 {[%emt 0:47:40]} 1/2-1/2

[Event "15th Vandoeuvre Open 2019"]
[Site "Vandoeuvre-les-Nancy"]
[Date "2019.01.05"]
[Round "7"]
[White "Bailet, Pierre"]
[Black "Guilleux, Fabien"]
[Result "1/2-1/2"]
[ECO "B30"]
[WhiteElo "2492"]
[BlackElo "2418"]
[Annotator "ChessBase"]
[PlyCount "88"]
[EventDate "2019.01.02"]
[EventType "swiss"]
[EventCountry "FRA"]
[SourceTitle "playchess.com"]
[Source "ChessBase"]
[SourceQuality "1"]
[TimeControl "5400+30"]

1. e4 {[%emt 0:00:00]} c5 {[%emt 0:00:00]} 2. Nf3 {[%emt 0:00:02]} Nc6 {[%emt 0:00:00]} 3. Bb5 {[%emt 0:00:58]} e6 {[%emt 0:00:06]} 4. O-O {[%emt 0:00:57]} Nge7 {[%emt 0:00:13]} 5. Re1 {[%emt 0:01:04]} a6 {[%emt 0:00:18]} 6. Bf1 {[%emt 0:00:28]} d5 {[%emt 0:01:27]} 7. exd5 {[%emt 0:01:42]} Nxd5 {[%emt 0:00:46]} 8. d4 {[%emt 0:01:11]} Nf6 {[%emt 0:24:31]} 9. Be3 {[%emt 0:06:00]} cxd4 {[%emt 1:07:09]} 10. Nxd4 {[%emt 0:00:15]} Nxd4 {[%emt 0:00:00]} 11. Bxd4 {[%emt 0:01:16]} Bd6 {[%emt 0:00:00]} 12. Nc3 {[%emt 0:07:50]} Bc7 {[%emt 0:00:00]} 13. g3 {[%emt 0:08:44]} O-O {[%emt 0:00:00]} 14. Bg2 {[%emt 0:02:53]} Qe7 {[%emt 0:02:30]} 15. Qe2 {[%emt 0:07:16]} Rb8 {[%emt 0:00:00]} 16. Rad1 {[%emt 0:08:44]} Rd8 {[%emt 0:00:00]} 17. Bxf6 {[%emt 0:49:10]} Qxf6 {[%emt 0:00:00]} 18. Nd5 {[%emt 0:00:00]} Rxd5 {[%emt 0:00:00]} 19. Rxd5 {[%emt 0:00:00]} g6 {[%emt 0:00:00]} 20. Rc5 {[%emt 0:00:00]} Bb6 {[%emt 0:00:00]} 21. Rc4 {[%emt 0:00:00]} Qxb2 {[%emt 0:00:00]} 22. Qd2 {[%emt 0:02:30]} Qf6 {[%emt 0:00:00]} 23. Rf4 {[%emt 0:00:00]} Qe7 {[%emt 0:00:00]} 24. Rh4 {[%emt 0:00:00]} h5 {[%emt 0:00:00]} 25. Rd1 {[%emt 0:00:00]} e5 {[%emt 0:00:00]} 26. Re4 {[%emt 0:00:00]} Bf5 {[%emt 0:00:00]} 27. Ree1 {[%emt 0:00:00]} Rc8 {[%emt 0:00:00]} 28. Be4 {[%emt 0:00:00]} Bg4 {[%emt 0:00:00]} 29. Qd6 {[%emt 0:00:00]} Qxd6 {[%emt 0:00:39]} 30. Rxd6 {[%emt 0:00:00]} Bd4 {[%emt 0:00:20]} 31. Rb1 {[%emt 0:00:00]} b6 {[%emt 0:01:47]} 32. Rxd4 {[%emt 0:00:00]} exd4 {[%emt 0:00:07]} 33. Rxb6 {[%emt 0:00:00]} Bf5 {[%emt 0:01:37]} 34. Bxf5 {[%emt 0:00:00]} gxf5 {[%emt 0:00:02]} 35. Rxa6 {[%emt 0:00:00]} Rxc2 {[%emt 0:00:02]} 36. Rd6 {[%emt 0:00:08]} Rxa2 {[%emt 0:00:36]} 37. Rxd4 {[%emt 0:01:15]} Kg7 {[%emt 0:00:01]} 38. Rd6 {[%emt 0:00:21]} Ra4 {[%emt 0:01:02]} 39. f4 {[%emt 0:01:11]} h4 {[%emt 0:00:10]} 40. Kg2 {[%emt 0:00:04]} hxg3 {[%emt 0:00:14]} 41. hxg3 {[%emt 0:00:02]} Ra1 {[%emt 0:00:19]} 42. Kf3 {[%emt 0:00:07]} Ra3+ {[%emt 0:00:08]} 43. Kg2 {[%emt 0:00:03]} Ra1 {[%emt 0:00:08]} 44. Kf3 {[%emt 0:00:02]} Ra3+ {[%emt 0:00:08] Ke4 [%clk 0:00:00]} 1/2-1/2